[Event "*** SCC Grand Prix: Titled Tuesday Blitz"]
[Site "Chess.com"]
[Date "2020.09.08"]
[Round "5"]
[White "Mikheev1976"]
[Black "vovachesss"]
[Result "1-0"]
[WhiteElo "2411"]
[BlackElo "2670"]
[TimeControl "180+1"]
[EndTime "10:56:46 PDT"]
[Termination "Mikheev1976 won on time"]

1. d4 {[%clk 0:03:00.9]} 1... Nf6 {[%clk 0:02:46.3]} 2. c4 {[%clk 0:03:00.8]}
2... c6 {[%clk 0:02:45.7]} 3. Nf3 {[%clk 0:03:01]} 3... d5 {[%clk 0:02:45.7]} 4.
cxd5 {[%clk 0:02:59.6]} 4... cxd5 {[%clk 0:02:46.6]} 5. Nc3 {[%clk 0:02:58.8]}
5... Nc6 {[%clk 0:02:46.4]} 6. Bf4 {[%clk 0:02:58.9]} 6... e6 {[%clk 0:02:45.7]}
7. e3 {[%clk 0:02:58.6]} 7... Bd6 {[%clk 0:02:45.9]} 8. Bxd6 {[%clk 0:02:56.1]}
8... Qxd6 {[%clk 0:02:46]} 9. Bd3 {[%clk 0:02:48.1]} 9... O-O {[%clk 0:02:46]}
10. O-O {[%clk 0:02:47.2]} 10... e5 {[%clk 0:02:31.4]} 11. dxe5 {[%clk
0:02:46.3]} 11... Nxe5 {[%clk 0:02:32.3]} 12. Nxe5 {[%clk 0:02:46.7]} 12... Qxe5
{[%clk 0:02:33.2]} 13. Qf3 {[%clk 0:02:30.9]} 13... Be6 {[%clk 0:02:08.7]} 14.
Qg3 {[%clk 0:02:23.5]} 14... Qh5 {[%clk 0:02:08.3]} 15. Ne2 {[%clk 0:02:17.5]}
15... Ne4 {[%clk 0:01:57.3]} 16. Qf4 {[%clk 0:02:06.6]} 16... Nc5 {[%clk
0:01:41.3]} 17. Qd4 {[%clk 0:01:58.8]} 17... Rac8 {[%clk 0:01:17.6]} 18. Rac1
{[%clk 0:01:52.3]} 18... Nxd3 {[%clk 0:00:59.8]} 19. Qxd3 {[%clk 0:01:53.2]}
19... Rc4 {[%clk 0:01:00.2]} 20. b3 {[%clk 0:01:34.4]} 20... Rh4 {[%clk
0:00:59.8]} 21. h3 {[%clk 0:01:34.6]} 21... Qg5 {[%clk 0:00:22.5]} 22. Ng3
{[%clk 0:01:18.5]} 22... a5 {[%clk 0:00:18.4]} 23. Rc7 {[%clk 0:01:11.9]} 23...
b6 {[%clk 0:00:14.2]} 24. Rfc1 {[%clk 0:01:09.7]} 24... a4 {[%clk 0:00:13.1]}
25. Qc3 {[%clk 0:00:55.5]} 25... h6 {[%clk 0:00:11.7]} 26. bxa4 {[%clk
0:00:49.7]} 26... Rxa4 {[%clk 0:00:11.2]} 27. a3 {[%clk 0:00:43.9]} 27... h5
{[%clk 0:00:09.3]} 28. Kf1 {[%clk 0:00:26.5]} 28... Rd8 {[%clk 0:00:04.8]} 29.
Ne2 {[%clk 0:00:25.4]} 29... Bf5 {[%clk 0:00:02.7]} 30. Nd4 {[%clk 0:00:25]}
30... Be4 {[%clk 0:00:03.1]} 31. f3 {[%clk 0:00:23.8]} 31... Bf5 {[%clk
0:00:03.6]} 32. Rb7 {[%clk 0:00:18.1]} 32... Re8 {[%clk 0:00:03.6]} 33. Kf2
{[%clk 0:00:17]} 33... Bg6 {[%clk 0:00:03.7]} 34. Re1 {[%clk 0:00:14.9]} 34...
h4 {[%clk 0:00:03.6]} 35. Qc6 {[%clk 0:00:14.4]} 35... Rf8 {[%clk 0:00:02.9]}
36. Qxa4 {[%clk 0:00:13.9]} 36... Qg3+ {[%clk 0:00:02.7]} 37. Kf1 {[%clk
0:00:12.2]} 37... Bd3+ {[%clk 0:00:03]} 38. Ne2 {[%clk 0:00:11.5]} 38... Rc8
{[%clk 0:00:02.6]} 39. Qf4 {[%clk 0:00:10.7]} 1-0

[Event "*** SCC Grand Prix: Titled Tuesday Blitz"]
[Site "Chess.com"]
[Date "2020.09.08"]
[Round "5"]
[White "Aborigen_came"]
[Black "bratkoo"]
[Result "0-1"]
[WhiteElo "2696"]
[BlackElo "2499"]
[TimeControl "180+1"]
[EndTime "10:56:49 PDT"]
[Termination "bratkoo won by resignation"]

1. Nc3 {[%clk 0:03:00.9]} 1... d5 {[%clk 0:02:58.9]} 2. e4 {[%clk 0:02:55.6]}
2... d4 {[%clk 0:02:58.7]} 3. Nce2 {[%clk 0:02:54.5]} 3... e5 {[%clk 0:02:59.1]}
4. Ng3 {[%clk 0:02:54.3]} 4... Nf6 {[%clk 0:02:59.1]} 5. Bc4 {[%clk 0:02:54.2]}
5... Be6 {[%clk 0:02:47.7]} 6. b3 {[%clk 0:02:31.7]} 6... Bxc4 {[%clk 0:02:46]}
7. bxc4 {[%clk 0:02:32.6]} 7... d3 {[%clk 0:02:42.7]} 8. Nf3 {[%clk 0:02:18]}
8... Nc6 {[%clk 0:02:39.5]} 9. O-O {[%clk 0:02:11.3]} 9... Bc5 {[%clk
0:02:39.1]} 10. Bb2 {[%clk 0:02:00.7]} 10... O-O {[%clk 0:02:03.2]} 11. Nxe5
{[%clk 0:01:52.7]} 11... Nxe5 {[%clk 0:02:01.2]} 12. Bxe5 {[%clk 0:01:53.6]}
12... dxc2 {[%clk 0:02:01.5]} 13. Qxc2 {[%clk 0:01:53.2]} 13... Ng4 {[%clk
0:02:01.8]} 14. d4 {[%clk 0:01:34.1]} 14... Bxd4 {[%clk 0:01:33.8]} 15. Bxd4
{[%clk 0:01:33.4]} 15... Qxd4 {[%clk 0:01:34.5]} 16. Rad1 {[%clk 0:01:32.5]}
16... Qc5 {[%clk 0:01:24.7]} 17. Rd5 {[%clk 0:01:30.7]} 17... Qc6 {[%clk
0:01:24.8]} 18. Nf5 {[%clk 0:01:26.1]} 18... Rae8 {[%clk 0:01:24.5]} 19. f3
{[%clk 0:00:59.3]} 19... Ne5 {[%clk 0:01:15.7]} 20. c5 {[%clk 0:00:48.4]} 20...
g6 {[%clk 0:01:11.8]} 21. Nd4 {[%clk 0:00:42.2]} 21... Qa6 {[%clk 0:01:11.8]}
22. Rd1 {[%clk 0:00:38.4]} 22... c6 {[%clk 0:01:09.5]} 23. Rd6 {[%clk
0:00:35.9]} 23... Nc4 {[%clk 0:01:09.7]} 24. Qd3 {[%clk 0:00:31.9]} 24... Qa4
{[%clk 0:00:56.7]} 25. Qb3 {[%clk 0:00:27.1]} 25... Qxb3 {[%clk 0:00:45.1]} 26.
Nxb3 {[%clk 0:00:26.4]} 26... Nxd6 {[%clk 0:00:44.3]} 27. cxd6 {[%clk
0:00:27.3]} 27... Rd8 {[%clk 0:00:40.8]} 28. e5 {[%clk 0:00:23.9]} 28... Rfe8
{[%clk 0:00:41.1]} 29. f4 {[%clk 0:00:22.8]} 29... f6 {[%clk 0:00:39.3]} 30. Nc5
{[%clk 0:00:21.3]} 30... b6 {[%clk 0:00:36.6]} 31. Nd3 {[%clk 0:00:19.4]} 31...
Kf7 {[%clk 0:00:35]} 32. Kf2 {[%clk 0:00:16.5]} 32... c5 {[%clk 0:00:35]} 33.
Rc1 {[%clk 0:00:14.7]} 33... Ke6 {[%clk 0:00:34.6]} 34. Ke3 {[%clk 0:00:14.4]}
34... fxe5 {[%clk 0:00:34]} 35. fxe5 {[%clk 0:00:14.3]} 35... Kd5 {[%clk
0:00:34.6]} 36. Rd1 {[%clk 0:00:12]} 36... Rxd6 {[%clk 0:00:29.3]} 37. Nf4+
{[%clk 0:00:01]} 37... Kxe5 {[%clk 0:00:28.7]} 38. Rf1 {[%clk 0:00:01.2]} 38...
c4 {[%clk 0:00:24.9]} 39. Kf3 {[%clk 0:00:01.2]} 39... Rf8 {[%clk 0:00:23.2]}
40. Re1+ {[%clk 0:00:01.4]} 40... Kd4 {[%clk 0:00:21.9]} 41. Rd1+ {[%clk
0:00:01.4]} 41... Kc5 {[%clk 0:00:21.2]} 42. Re1 {[%clk 0:00:01.7]} 0-1

[Event "*** SCC Grand Prix: Titled Tuesday Blitz"]
[Site "Chess.com"]
[Date "2020.09.08"]
[Round "5"]
[White "GMHess"]
[Black "Yaacovn"]
[Result "1-0"]
[WhiteElo "2767"]
[BlackElo "2907"]
[TimeControl "180+1"]
[EndTime "10:56:50 PDT"]
[Termination "GMHess won on time"]

1. d4 {[%clk 0:03:00.9]} 1... Nf6 {[%clk 0:02:56.8]} 2. c4 {[%clk 0:03:00.4]}
2... e5 {[%clk 0:02:55.4]} 3. dxe5 {[%clk 0:02:58.8]} 3... Ne4 {[%clk
0:02:55.9]} 4. Nf3 {[%clk 0:02:58.9]} 4... Nc6 {[%clk 0:02:55]} 5. Qc2 {[%clk
0:02:27.8]} 5... Bb4+ {[%clk 0:02:50.8]} 6. Nbd2 {[%clk 0:02:21.7]} 6... d5
{[%clk 0:02:47.6]} 7. a3 {[%clk 0:01:50.7]} 7... Bxd2+ {[%clk 0:02:46.3]} 8.
Bxd2 {[%clk 0:01:50.7]} 8... Bf5 {[%clk 0:02:45.8]} 9. Rd1 {[%clk 0:01:17.6]}
9... Ng3 {[%clk 0:02:13.3]} 10. Qa4 {[%clk 0:01:17]} 10... Nxh1 {[%clk
0:02:12.1]} 11. Bg5 {[%clk 0:01:16.1]} 11... Qd7 {[%clk 0:02:09.2]} 12. cxd5
{[%clk 0:01:16.3]} 12... Nxe5 {[%clk 0:02:06.8]} 13. Qxd7+ {[%clk 0:01:09]}
13... Nxd7 {[%clk 0:02:06]} 14. g3 {[%clk 0:01:09.6]} 14... Nc5 {[%clk
0:01:51.3]} 15. Nd4 {[%clk 0:01:00.8]} 15... Bd7 {[%clk 0:01:39.6]} 16. Bg2
{[%clk 0:00:58.6]} 16... Nxf2 {[%clk 0:01:32]} 17. Kxf2 {[%clk 0:00:59.5]} 17...
f6 {[%clk 0:01:11.9]} 18. Bf4 {[%clk 0:00:55.9]} 18... Rc8 {[%clk 0:01:07.1]}
19. Rc1 {[%clk 0:00:53.2]} 19... Na6 {[%clk 0:00:41]} 20. b4 {[%clk 0:00:51.2]}
20... b6 {[%clk 0:00:34.7]} 21. e4 {[%clk 0:00:36.9]} 21... g5 {[%clk
0:00:30.4]} 22. Bd2 {[%clk 0:00:18.8]} 22... Nb8 {[%clk 0:00:26.9]} 23. h4
{[%clk 0:00:10.6]} 23... h6 {[%clk 0:00:22.7]} 24. b5 {[%clk 0:00:08.2]} 24...
Kf7 {[%clk 0:00:19.2]} 25. a4 {[%clk 0:00:07.6]} 25... a5 {[%clk 0:00:16.4]} 26.
Bf3 {[%clk 0:00:07]} 26... Kg6 {[%clk 0:00:14.5]} 27. h5+ {[%clk 0:00:06.9]}
27... Kf7 {[%clk 0:00:14.5]} 28. g4 {[%clk 0:00:07]} 28... Rhe8 {[%clk
0:00:14.6]} 29. Ke3 {[%clk 0:00:04.7]} 29... Kg7 {[%clk 0:00:06.3]} 30. Be1
{[%clk 0:00:03.6]} 30... Re7 {[%clk 0:00:03.6]} 31. Bg3 {[%clk 0:00:03.8]} 31...
Rce8 {[%clk 0:00:03.3]} 32. Rxc7 {[%clk 0:00:02.7]} 32... Rf7 {[%clk 0:00:03.4]}
33. Kd3 {[%clk 0:00:02.5]} 33... f5 {[%clk 0:00:02.5]} 34. gxf5 {[%clk
0:00:02.4]} 34... Rfe7 {[%clk 0:00:03.4]} 35. Ne6+ {[%clk 0:00:01.9]} 35... Bxe6
{[%clk 0:00:03.3]} 36. fxe6 {[%clk 0:00:02.8]} 36... Rxc7 {[%clk 0:00:03.2]} 37.
Bxc7 {[%clk 0:00:02.7]} 37... Kf6 {[%clk 0:00:03.5]} 38. e5+ {[%clk 0:00:02.8]}
38... Kf5 {[%clk 0:00:02.5]} 39. Be4+ {[%clk 0:00:03.3]} 39... Kf4 {[%clk
0:00:02]} 40. Bg6 {[%clk 0:00:04.2]} 40... Re7 {[%clk 0:00:01.4]} 41. Bd6 {[%clk
0:00:04]} 41... Rb7 {[%clk 0:00:01.1]} 42. e7 {[%clk 0:00:04.4]} 1-0

[Event "*** SCC Grand Prix: Titled Tuesday Blitz"]
[Site "Chess.com"]
[Date "2020.09.08"]
[Round "5"]
[White "MarceloPlaya"]
[Black "winniethepooh04"]
[Result "0-1"]
[WhiteElo "2343"]
[BlackElo "2222"]
[TimeControl "180+1"]
[EndTime "10:56:51 PDT"]
[Termination "winniethepooh04 won by checkmate"]

1. e4 {[%clk 0:03:00.9]} 1... c5 {[%clk 0:02:52.6]} 2. Nf3 {[%clk 0:02:59.1]}
2... d6 {[%clk 0:02:40.1]} 3. d4 {[%clk 0:02:54.2]} 3... cxd4 {[%clk 0:02:37.1]}
4. Nxd4 {[%clk 0:02:53.3]} 4... Nf6 {[%clk 0:02:32.7]} 5. Nc3 {[%clk 0:02:52.3]}
5... a6 {[%clk 0:02:30.7]} 6. Bg5 {[%clk 0:02:52]} 6... e6 {[%clk 0:02:30]} 7.
f4 {[%clk 0:02:51.8]} 7... Be7 {[%clk 0:02:27.6]} 8. Qf3 {[%clk 0:02:51.6]} 8...
Qc7 {[%clk 0:02:19.2]} 9. O-O-O {[%clk 0:02:50.3]} 9... Nc6 {[%clk 0:02:10.8]}
10. Kb1 {[%clk 0:02:45.4]} 10... Nxd4 {[%clk 0:02:02.4]} 11. Rxd4 {[%clk
0:02:44.1]} 11... O-O {[%clk 0:01:22.6]} 12. g4 {[%clk 0:02:38.9]} 12... b5
{[%clk 0:01:18.7]} 13. h4 {[%clk 0:02:23]} 13... Bb7 {[%clk 0:01:11.8]} 14. Bxf6
{[%clk 0:02:12.2]} 14... Bxf6 {[%clk 0:01:11.3]} 15. Rd3 {[%clk 0:02:11.9]}
15... b4 {[%clk 0:01:10.8]} 16. Nd1 {[%clk 0:01:58.8]} 16... Rac8 {[%clk
0:01:09.7]} 17. Rh2 {[%clk 0:01:57.9]} 17... d5 {[%clk 0:01:09.6]} 18. e5 {[%clk
0:01:55.8]} 18... Be7 {[%clk 0:01:06.5]} 19. g5 {[%clk 0:01:52.2]} 19... d4
{[%clk 0:01:06.3]} 20. Qe2 {[%clk 0:01:37.6]} 20... a5 {[%clk 0:00:56.8]} 21.
Rxd4 {[%clk 0:01:28.6]} 21... Bc5 {[%clk 0:00:56.9]} 22. Rd2 {[%clk 0:01:24.9]}
22... Rfd8 {[%clk 0:00:57.2]} 23. h5 {[%clk 0:01:14.3]} 23... Rxd2 {[%clk
0:00:55.2]} 24. Qxd2 {[%clk 0:01:13.7]} 24... Rd8 {[%clk 0:00:55.7]} 25. Bd3
{[%clk 0:01:08.7]} 25... Bf3 {[%clk 0:00:51]} 26. g6 {[%clk 0:01:05]} 26... hxg6
{[%clk 0:00:44.4]} 27. hxg6 {[%clk 0:01:03.2]} 27... Bxd1 {[%clk 0:00:44.8]} 28.
gxf7+ {[%clk 0:00:54.2]} 28... Kxf7 {[%clk 0:00:44]} 29. Qxd1 {[%clk 0:00:53.1]}
29... Be3 {[%clk 0:00:34.6]} 30. f5 {[%clk 0:00:37.2]} 30... Qxe5 {[%clk
0:00:32.8]} 31. fxe6+ {[%clk 0:00:36.7]} 31... Ke7 {[%clk 0:00:31.2]} 32. Re2
{[%clk 0:00:32.5]} 32... Qf4 {[%clk 0:00:23.7]} 33. Qe1 {[%clk 0:00:30.7]} 33...
Bc5 {[%clk 0:00:20.8]} 34. Re4 {[%clk 0:00:30]} 34... Qf2 {[%clk 0:00:19.2]} 35.
Qd1 {[%clk 0:00:24.6]} 35... Qf6 {[%clk 0:00:17.9]} 36. Qe1 {[%clk 0:00:18.2]}
36... a4 {[%clk 0:00:17.7]} 37. a3 {[%clk 0:00:16.1]} 37... bxa3 {[%clk
0:00:16.1]} 38. c3 {[%clk 0:00:15.8]} 38... axb2 {[%clk 0:00:15.6]} 39. Rxa4
{[%clk 0:00:14.9]} 39... Rb8 {[%clk 0:00:10.7]} 40. Bc4 {[%clk 0:00:13.1]} 40...
Rb7 {[%clk 0:00:10.5]} 41. Ra5 {[%clk 0:00:11.5]} 41... Qf5+ {[%clk 0:00:10.7]}
42. Ka2 {[%clk 0:00:09]} 42... b1=Q+ {[%clk 0:00:10]} 43. Qxb1 {[%clk
0:00:08.8]} 43... Qxb1# {[%clk 0:00:10.6]} 0-1

[Event "*** SCC Grand Prix: Titled Tuesday Blitz"]
[Site "Chess.com"]
[Date "2020.09.08"]
[Round "5"]
[White "LyonBeast"]
[Black "Gabix_94"]
[Result "1-0"]
[WhiteElo "3023"]
[BlackElo "2834"]
[TimeControl "180+1"]
[EndTime "10:56:57 PDT"]
[Termination "LyonBeast won on time"]

1. c4 {[%clk 0:03:00.9]} 1... Nf6 {[%clk 0:02:59.4]} 2. Nf3 {[%clk 0:03:01]}
2... c5 {[%clk 0:02:59.4]} 3. g3 {[%clk 0:03:00.6]} 3... Nc6 {[%clk 0:02:57.6]}
4. Bg2 {[%clk 0:02:59.2]} 4... d5 {[%clk 0:02:58]} 5. cxd5 {[%clk 0:02:57.7]}
5... Nxd5 {[%clk 0:02:58.9]} 6. d4 {[%clk 0:02:55.8]} 6... cxd4 {[%clk
0:02:58.9]} 7. Nxd4 {[%clk 0:02:56.7]} 7... Ndb4 {[%clk 0:02:59.5]} 8. Nxc6
{[%clk 0:02:56.8]} 8... Qxd1+ {[%clk 0:02:59.3]} 9. Kxd1 {[%clk 0:02:57.7]} 9...
Nxc6 {[%clk 0:02:59.9]} 10. Nc3 {[%clk 0:02:57.4]} 10... Bd7 {[%clk 0:02:57.6]}
11. Bd2 {[%clk 0:02:56.6]} 11... e6 {[%clk 0:02:51]} 12. e3 {[%clk 0:02:53.4]}
12... O-O-O {[%clk 0:02:48]} 13. Ke2 {[%clk 0:02:52.9]} 13... Be7 {[%clk
0:02:45]} 14. Rac1 {[%clk 0:02:51.9]} 14... Kb8 {[%clk 0:02:44.6]} 15. Rhd1
{[%clk 0:02:50]} 15... Ne5 {[%clk 0:02:27.4]} 16. Be1 {[%clk 0:02:47.5]} 16...
Bc6 {[%clk 0:02:24.2]} 17. Bxc6 {[%clk 0:02:44]} 17... Nxc6 {[%clk 0:02:25.1]}
18. Ne4 {[%clk 0:02:44.1]} 18... f5 {[%clk 0:02:11.7]} 19. Nd2 {[%clk
0:02:42.1]} 19... e5 {[%clk 0:02:00.1]} 20. a3 {[%clk 0:02:37.1]} 20... e4
{[%clk 0:01:58.7]} 21. Nc4 {[%clk 0:02:32.8]} 21... Bf6 {[%clk 0:01:51.6]} 22.
b4 {[%clk 0:02:27.7]} 22... Rxd1 {[%clk 0:01:47.5]} 23. Rxd1 {[%clk 0:02:28.6]}
23... Rd8 {[%clk 0:01:47.6]} 24. Rc1 {[%clk 0:02:11.4]} 24... g6 {[%clk
0:01:34.4]} 25. h3 {[%clk 0:02:08.2]} 25... h5 {[%clk 0:01:32.9]} 26. b5 {[%clk
0:02:02]} 26... Ne5 {[%clk 0:01:23]} 27. Nxe5 {[%clk 0:02:01.3]} 27... Bxe5
{[%clk 0:01:21.6]} 28. g4 {[%clk 0:01:57.3]} 28... hxg4 {[%clk 0:01:08.1]} 29.
hxg4 {[%clk 0:01:58.2]} 29... Bd6 {[%clk 0:01:05.9]} 30. gxf5 {[%clk 0:01:51]}
30... gxf5 {[%clk 0:01:06.8]} 31. a4 {[%clk 0:01:49.9]} 31... b6 {[%clk
0:01:02.7]} 32. Rc6 {[%clk 0:01:44.5]} 32... Kb7 {[%clk 0:01:02.2]} 33. a5
{[%clk 0:01:44.3]} 33... bxa5 {[%clk 0:01:01.7]} 34. Bxa5 {[%clk 0:01:45.2]}
34... Rd7 {[%clk 0:01:01.4]} 35. Bc3 {[%clk 0:01:45.2]} 35... Bc7 {[%clk
0:00:45.8]} 36. Rc5 {[%clk 0:01:27.3]} 36... Rf7 {[%clk 0:00:44.5]} 37. Rd5
{[%clk 0:01:22.9]} 37... a6 {[%clk 0:00:41.1]} 38. bxa6+ {[%clk 0:01:17.5]}
38... Kxa6 {[%clk 0:00:42]} 39. Bd4 {[%clk 0:00:56.5]} 39... Kb7 {[%clk
0:00:39.6]} 40. Kd2 {[%clk 0:00:56.8]} 40... f4 {[%clk 0:00:36.2]} 41. Kc3
{[%clk 0:00:56.4]} 41... fxe3 {[%clk 0:00:34.3]} 42. fxe3 {[%clk 0:00:57.3]}
42... Kc6 {[%clk 0:00:32.8]} 43. Kc4 {[%clk 0:00:57.3]} 43... Bd6 {[%clk
0:00:26.4]} 44. Ra5 {[%clk 0:00:55.5]} 44... Rf1 {[%clk 0:00:25.5]} 45. Ra6+
{[%clk 0:00:55.4]} 45... Kd7 {[%clk 0:00:25.9]} 46. Kd5 {[%clk 0:00:55.8]} 46...
Rf5+ {[%clk 0:00:23.9]} 47. Kxe4 {[%clk 0:00:56.1]} 47... Rh5 {[%clk 0:00:24.6]}
48. Kd3 {[%clk 0:00:54.3]} 48... Rh1 {[%clk 0:00:22.3]} 49. Kc4 {[%clk
0:00:52.3]} 49... Rh5 {[%clk 0:00:22.2]} 50. e4 {[%clk 0:00:52.2]} 50... Rh4
{[%clk 0:00:20.4]} 51. Kd5 {[%clk 0:00:51.6]} 51... Rh5+ {[%clk 0:00:20.9]} 52.
e5 {[%clk 0:00:52.1]} 52... Bxe5 {[%clk 0:00:21.3]} 53. Bxe5 {[%clk 0:00:53]}
53... Kc8 {[%clk 0:00:18.9]} 54. Ra7 {[%clk 0:00:48.9]} 54... Rh6 {[%clk
0:00:17.8]} 55. Bd6 {[%clk 0:00:46.3]} 55... Rh1 {[%clk 0:00:15.7]} 56. Kc6
{[%clk 0:00:46.3]} 56... Rc1+ {[%clk 0:00:15.7]} 57. Bc5 {[%clk 0:00:46.3]}
57... Kb8 {[%clk 0:00:14.9]} 58. Rg7 {[%clk 0:00:42.7]} 1-0

[Event "*** SCC Grand Prix: Titled Tuesday Blitz"]
[Site "Chess.com"]
[Date "2020.09.08"]
[Round "5"]
[White "Snegokhod"]
[Black "seorobert1971"]
[Result "0-1"]
[WhiteElo "2381"]
[BlackElo "2683"]
[TimeControl "180+1"]
[EndTime "10:56:59 PDT"]
[Termination "seorobert1971 won by resignation"]

1. e4 {[%clk 0:03:00.9]} 1... c6 {[%clk 0:03:00.3]} 2. d3 {[%clk 0:02:59.9]}
2... d5 {[%clk 0:03:01.2]} 3. Nd2 {[%clk 0:02:59.7]} 3... e5 {[%clk 0:03:01.1]}
4. Ngf3 {[%clk 0:02:59.4]} 4... Bd6 {[%clk 0:03:01]} 5. d4 {[%clk 0:02:59.2]}
5... exd4 {[%clk 0:02:59.6]} 6. Bd3 {[%clk 0:02:58.1]} 6... dxe4 {[%clk
0:02:54]} 7. Nxe4 {[%clk 0:02:57.6]} 7... Be7 {[%clk 0:02:54.3]} 8. O-O {[%clk
0:02:57.1]} 8... Nf6 {[%clk 0:02:54.2]} 9. Nxf6+ {[%clk 0:02:56.1]} 9... Bxf6
{[%clk 0:02:54.1]} 10. Re1+ {[%clk 0:02:55.9]} 10... Be6 {[%clk 0:02:53.1]} 11.
Bf5 {[%clk 0:02:48.2]} 11... O-O {[%clk 0:02:51.7]} 12. Bxe6 {[%clk 0:02:46]}
12... fxe6 {[%clk 0:02:51.3]} 13. Rxe6 {[%clk 0:02:46.5]} 13... c5 {[%clk
0:02:46.9]} 14. Bf4 {[%clk 0:02:39.1]} 14... Qd5 {[%clk 0:02:29.2]} 15. Qe2
{[%clk 0:02:35]} 15... Nc6 {[%clk 0:02:25.9]} 16. a3 {[%clk 0:02:01.7]} 16...
Rad8 {[%clk 0:02:21.9]} 17. Re1 {[%clk 0:01:47.2]} 17... c4 {[%clk 0:02:20.1]}
18. Qe4 {[%clk 0:01:38.7]} 18... d3 {[%clk 0:02:06.5]} 19. cxd3 {[%clk
0:01:33.5]} 19... Qxe4 {[%clk 0:01:48.7]} 20. R6xe4 {[%clk 0:01:19.1]} 20...
Rxd3 {[%clk 0:01:36.8]} 21. Rxc4 {[%clk 0:01:14.9]} 21... Bxb2 {[%clk
0:01:36.3]} 22. a4 {[%clk 0:01:08.2]} 22... Na5 {[%clk 0:01:28.6]} 23. Rce4
{[%clk 0:01:05.2]} 23... Nc6 {[%clk 0:01:21.2]} 24. Kf1 {[%clk 0:00:58.4]} 24...
Bf6 {[%clk 0:01:20.7]} 25. Rb1 {[%clk 0:00:52.2]} 25... Rd7 {[%clk 0:01:19.9]}
26. Ne5 {[%clk 0:00:48.5]} 26... Bxe5 {[%clk 0:01:09]} 27. Bxe5 {[%clk
0:00:48.5]} 27... Rd2 {[%clk 0:00:56.4]} 28. Bg3 {[%clk 0:00:43.5]} 28... Rd7
{[%clk 0:00:55.1]} 29. h4 {[%clk 0:00:36.4]} 29... h6 {[%clk 0:00:54.2]} 30. Kg1
{[%clk 0:00:35]} 30... Kf7 {[%clk 0:00:53.4]} 31. Kh2 {[%clk 0:00:35.4]} 31...
Re8 {[%clk 0:00:52.5]} 32. Rf4+ {[%clk 0:00:33.1]} 32... Kg8 {[%clk 0:00:52.4]}
33. Kh3 {[%clk 0:00:32.8]} 33... b6 {[%clk 0:00:50.7]} 34. Rg4 {[%clk
0:00:33.1]} 34... Re6 {[%clk 0:00:44.6]} 35. Bf4 {[%clk 0:00:31.9]} 35... Rd4
{[%clk 0:00:40.4]} 36. Ra1 {[%clk 0:00:22.7]} 36... Ree4 {[%clk 0:00:38.9]} 37.
g3 {[%clk 0:00:21.9]} 37... Rxa4 {[%clk 0:00:37.1]} 38. Rd1 {[%clk 0:00:18.6]}
38... Rad4 {[%clk 0:00:32.2]} 39. Rc1 {[%clk 0:00:18.8]} 39... Rc4 {[%clk
0:00:23.3]} 40. Rd1 {[%clk 0:00:18.9]} 40... Ne5 {[%clk 0:00:20.9]} 41. Bxe5
{[%clk 0:00:11.9]} 41... Rxg4 {[%clk 0:00:20.7]} 42. Rd7 {[%clk 0:00:08.8]}
42... Rg6 {[%clk 0:00:18.6]} 43. h5 {[%clk 0:00:06]} 43... Rg5 {[%clk
0:00:18.3]} 44. f4 {[%clk 0:00:05.2]} 44... Rxh5+ {[%clk 0:00:17.8]} 45. Kg4
{[%clk 0:00:05.7]} 45... Rxe5 {[%clk 0:00:17.6]} 0-1

[Event "*** SCC Grand Prix: Titled Tuesday Blitz"]
[Site "Chess.com"]
[Date "2020.09.08"]
[Round "5"]
[White "Yoshikrov"]
[Black "r31415"]
[Result "0-1"]
[WhiteElo "2112"]
[BlackElo "2463"]
[TimeControl "180+1"]
[EndTime "10:57:02 PDT"]
[Termination "r31415 won on time"]

1. e4 {[%clk 0:01:57.2]} 1... e5 {[%clk 0:02:51.7]} 2. Nf3 {[%clk 0:01:57.1]}
2... Nc6 {[%clk 0:02:52.3]} 3. c4 {[%clk 0:01:57.1]} 3... Bc5 {[%clk 0:02:35.7]}
4. Nc3 {[%clk 0:01:54.1]} 4... Nf6 {[%clk 0:02:33.1]} 5. Be2 {[%clk 0:01:43.6]}
5... O-O {[%clk 0:02:32]} 6. O-O {[%clk 0:01:43.4]} 6... a5 {[%clk 0:02:29.4]}
7. Nxe5 {[%clk 0:01:15.9]} 7... Nxe5 {[%clk 0:02:29.1]} 8. d4 {[%clk 0:01:15.1]}
8... Bd6 {[%clk 0:02:29.5]} 9. dxe5 {[%clk 0:01:13.9]} 9... Bxe5 {[%clk
0:02:30.4]} 10. Be3 {[%clk 0:01:05.9]} 10... Bxc3 {[%clk 0:02:20.1]} 11. bxc3
{[%clk 0:01:04.5]} 11... Nxe4 {[%clk 0:02:20.7]} 12. Qd4 {[%clk 0:00:55.8]}
12... Re8 {[%clk 0:02:16.1]} 13. Bd3 {[%clk 0:00:52.8]} 13... Qe7 {[%clk
0:02:06]} 14. Rfe1 {[%clk 0:00:45.2]} 14... Nf6 {[%clk 0:01:50.8]} 15. Bg5
{[%clk 0:00:36.6]} 15... Qxe1+ {[%clk 0:01:49.7]} 16. Rxe1 {[%clk 0:00:35.9]}
16... Rxe1+ {[%clk 0:01:50.6]} 17. Bf1 {[%clk 0:00:36.3]} 17... Ne8 {[%clk
0:01:15.6]} 18. f3 {[%clk 0:00:32]} 18... d6 {[%clk 0:01:13.3]} 19. Kf2 {[%clk
0:00:31]} 19... Ra1 {[%clk 0:01:06.8]} 20. Bd3 {[%clk 0:00:30]} 20... Rxa2+
{[%clk 0:01:05.5]} 21. Kg3 {[%clk 0:00:29.1]} 21... h6 {[%clk 0:00:56.1]} 22.
Qe4 {[%clk 0:00:19.3]} 22... Nf6 {[%clk 0:00:18.4]} 23. Bxf6 {[%clk 0:00:19.4]}
23... gxf6 {[%clk 0:00:19.3]} 24. Qh7+ {[%clk 0:00:19.2]} 24... Kf8 {[%clk
0:00:19.8]} 25. Qxh6+ {[%clk 0:00:18]} 25... Ke7 {[%clk 0:00:20.3]} 26. Qe3+
{[%clk 0:00:17.7]} 26... Be6 {[%clk 0:00:20.8]} 27. f4 {[%clk 0:00:18.1]} 27...
Rg8+ {[%clk 0:00:21.3]} 28. Kf3 {[%clk 0:00:17.2]} 28... Rgxg2 {[%clk
0:00:14.3]} 29. f5 {[%clk 0:00:08.4]} 29... Raf2+ {[%clk 0:00:10.4]} 30. Qxf2
{[%clk 0:00:06.3]} 30... Rxf2+ {[%clk 0:00:11.3]} 31. Kxf2 {[%clk 0:00:07.1]}
31... Bd7 {[%clk 0:00:11.5]} 32. Ke3 {[%clk 0:00:07.3]} 32... a4 {[%clk
0:00:08.5]} 33. Kf4 {[%clk 0:00:06.2]} 33... a3 {[%clk 0:00:06.6]} 34. Bb1
{[%clk 0:00:06.4]} 34... Kf8 {[%clk 0:00:06.9]} 35. h4 {[%clk 0:00:06.6]} 35...
Kg7 {[%clk 0:00:07.2]} 36. Ba2 {[%clk 0:00:05.4]} 36... Ba4 {[%clk 0:00:07.5]}
37. Ke4 {[%clk 0:00:05.4]} 37... Bc2+ {[%clk 0:00:07.1]} 38. Kd4 {[%clk
0:00:05.5]} 38... Bxf5 {[%clk 0:00:06.3]} 39. c5 {[%clk 0:00:06.4]} 39... dxc5+
{[%clk 0:00:04.3]} 40. Kxc5 {[%clk 0:00:06.6]} 40... Be6 {[%clk 0:00:05]} 41.
Bxe6 {[%clk 0:00:03.9]} 41... fxe6 {[%clk 0:00:04.5]} 0-1